fUST/lending_fUST_20251215
["ID","MTS","AMOUNT","RATE_DAILY","PERIOD"]
[398527244,1765790542946,154.93,8.585e-05,2]
[398527245,1765790543339,206.58,9.245e-05,2]
[398527246,1765790543734,258.22,9.906e-05,2]
[398527247,1765790544167,309.87,0.00010566,2]
[398527248,1765790544600,94.41540774,0.00011226,2]
[398527249,1765790544623,267.09459226,0.00011226,2]
[398527250,1765790545011,413.15,0.00011887,2]
[398527254,1765790617099,150.0,7.092e-05,2]
[398527255,1765790617499,150.0,7.736e-05,2]
[398527256,1765790617900,150.0,8.381e-05,2]
[398527257,1765790690255,150.0,5.2e-07,2]
[398527258,1765790690685,150.0,7.073e-05,2]
[398527259,1765790691186,150.0,7.716e-05,2]
[398527260,1765790691293,150.0,5.2e-07,2]
[398527261,1765790691534,150.0,8.36e-05,2]
[398527271,1765790733002,-150.0,9.026e-05,2]
[398527272,1765790733035,-150.0,9.671e-05,2]
[398527273,1765790733067,-160.28,0.0001,2]
[398527274,1765790733100,-150.0,0.00010289,2]
[398527275,1765790733132,-150.0,0.00010932,2]
[398527276,1765790733165,-163.27,0.00011575,2]
[398527277,1765790733195,-1414.0,0.00012,2]
[398527278,1765790733229,-183.67,0.00012218,2]
[398527286,1765790758179,150.0,7.153e-05,2]
[398527287,1765790759209,-5000.0,0.00012422,2]
[398527327,1765790971350,-4447.46875881,9.801e-05,2]
[398527328,1765791013922,-552.53124119,9.801e-05,2]
[398527329,1765791013944,-0.58703251,9.801e-05,2]
[398527330,1765791016683,-250.04743464,9.801e-05,2]
[398527331,1765791018809,-166.39,9.801e-05,2]
[398527338,1765791031941,-139.97553285,9.801e-05,2]
[398527339,1765791031951,-199.20674454,9.95e-05,2]
[398527340,1765791031960,-160.28,0.0001,2]
[398527341,1765791031969,-235.06395856,0.0001195,2]
[398527342,1765791031977,-300.0,0.00012141,2]
[398527343,1765791031986,-300.0,0.00012141,2]
[398527344,1765791031995,-300.0,0.00012141,2]
[398527345,1765791032004,-300.0,0.00012141,2]
[398527346,1765791032013,-1200.0,0.00012141,2]
[398527347,1765791032021,-500.0,0.00012142,2]
[398527348,1765791032030,-500.0,0.00012142,2]
[398527349,1765791032039,-500.0,0.00012142,2]
[398527350,1765791032048,-13.72376405,0.00012142,2]
[398527351,1765791032059,-615.79523595,0.00012142,2]
[398527352,1765791032067,-92.23399986,0.00012142,2]
[398527353,1765791032110,-407.76600014,0.00012142,2]
[398527354,1765791032119,-500.0,0.00012142,2]
[398527355,1765791032128,-500.0,0.00012142,2]
[398527356,1765791032136,-500.0,0.00012142,2]
[398527357,1765791032145,-500.0,0.00012142,2]
[398527358,1765791032154,-500.0,0.00012142,2]
[398527359,1765791032162,-500.0,0.00012142,2]
[398527360,1765791032171,-500.0,0.00012142,2]
[398527361,1765791032180,-500.0,0.00012142,2]
[398527362,1765791032189,-500.0,0.00012142,2]
[398527363,1765791032197,-500.0,0.00012142,2]
[398527364,1765791032206,-500.0,0.00012142,2]
[398527365,1765791032214,-500.0,0.00012142,2]
[398527366,1765791032223,-500.0,0.00012142,2]
[398527367,1765791032231,-759.14928913,0.00012143,2]
[398527368,1765791032241,-206.99810591,0.00012448,2]
[398527369,1765791032250,-1200.0,0.0001248,2]
[398527370,1765791032259,-235.44713906,0.0001268,2]
[398527371,1765791032267,-614.14348644,0.00012696,3]
[398527372,1765791032276,-893.94591163,0.00012696,3]
[398527373,1765791032285,-2009.36692286,0.00012696,3]
[398527374,1765791032294,-166.13782087,0.00012696,3]
[398527375,1765791032303,-76854.535573,0.00012973,2]
[398527497,1765791037957,-5000.0,0.00012843,2]
[398527499,1765791037966,-38591.30051969,0.00012973,2]
[398527501,1765791037977,-8581.03043972,0.00012973,2]
[398527503,1765791037988,-521.37153654,0.00012973,2]
[398527505,1765791038000,-1069.39056157,0.00012973,2]
[398527507,1765791038011,-7227.45186113,0.00012973,2]
[398527510,1765791038022,-559.59362836,0.00012973,2]
[398527657,1765791040088,-5736.83776106,0.00012973,2]
[398527852,1765791042981,-290.87174554,0.00012973,2]
[398527928,1765791077226,150.0,7.601e-05,2]
[398527929,1765791078063,150.0,8.293e-05,2]
[398527930,1765791078471,150.0,8.984e-05,2]
[398527931,1765791080264,-150.0,9.675e-05,2]
[398527932,1765791080294,-150.0,0.00010366,2]
[398527933,1765791080326,-150.0,0.00011057,2]
[398527934,1765791080356,-4100.01,0.0001202,2]
[398527935,1765791080623,-899.99,0.0001202,2]
[398527936,1765791083685,5000.0,0.00012131,2]
[398527937,1765791107429,3200.03,0.00012131,2]
[398527938,1765791107450,1799.97,0.00012131,2]
[398527939,1765791123447,160.95,0.000101,2]
[398527940,1765791130795,5000.0,0.00012131,2]
[398527941,1765791143533,150.0,7.055e-05,2]
[398527942,1765791143925,179.63,7.696e-05,2]
[398527943,1765791144416,269.44,8.338e-05,2]
[398527944,1765791144720,359.26,8.979e-05,2]
[398527945,1765791145123,449.07,9.621e-05,2]
[398527946,1765791145525,538.89,0.00010262,2]
[398527947,1765791145947,628.7,0.00010903,2]
[398527948,1765791146316,464.1,0.00011545,2]
[398527949,1765791146340,254.42,0.00011545,2]
[398527950,1765791153915,5000.0,0.00012131,2]
[398527951,1765791177393,4745.59,0.00012131,2]
[398527952,1765791177414,254.41,0.00012131,2]
[398527953,1765791184805,154.98,0.000101,2]
[398527954,1765791185231,154.98,0.000105,2]
[398527955,1765791185535,154.98,0.000109,2]
[398527956,1765791185900,154.98,0.000113,2]
[398527957,1765791186283,154.98,0.000117,2]
[398527958,1765791186714,154.98,0.000121,2]
[398527959,1765791189669,154.93,0.000101,2]
[398527960,1765791201224,5000.0,0.00012131,2]
[398527962,1765791219890,150.0,7.061e-05,2]
[398527963,1765791220655,150.0,7.703e-05,2]
[398527964,1765791220912,150.0,8.345e-05,2]
[398527965,1765791221670,191.59,8.987e-05,2]
[398527966,1765791221876,239.49,9.629e-05,2]
[398527967,1765791222125,287.38,0.00010271,2]
[398527968,1765791222554,335.28,0.00010913,2]
[398527969,1765791222944,383.18,0.00011555,2]
[398527970,1765791224958,1773.87,0.00012131,2]
[398527971,1765791225003,3226.13,0.00012131,2]
[398527972,1765791245304,154.98,0.000101,2]
[398527973,1765791245598,154.98,0.000114,2]
[398527974,1765791248750,5000.0,0.00012131,2]
[398527976,1765791274119,1463.92,0.00012131,2]
[398527977,1765791274143,3536.08,0.00012131,2]
[398527978,1765791294712,150.0,7.053e-05,2]
[398527979,1765791294932,150.0,7.694e-05,2]
[398527980,1765791295302,206.17,8.335e-05,2]
[398527981,1765791295846,274.89,8.976e-05,2]
[398527982,1765791296518,343.61,9.617e-05,2]
[398527983,1765791296688,412.34,0.00010259,2]
[398527984,1765791297211,4926.92,0.00012131,2]
[398527985,1765791297233,73.08,0.00012131,2]
[398527986,1765791297624,481.06,0.000109,2]
[398527987,1765791298572,549.78,0.00011541,2]
[398527988,1765791304333,152.07,0.000101,2]
[398527989,1765791304649,152.07,0.000105,2]
[398527990,1765791307616,152.07,0.000108,2]
[398527991,1765791307916,152.07,0.000112,2]
[398527992,1765791309020,152.07,0.000115,2]
[398527993,1765791309549,152.07,0.000119,2]
[398527994,1765791320193,5000.0,0.00012131,2]
[398527995,1765791366822,152.07,0.000101,2]
[398527996,1765791367082,152.07,0.000109,2]
[398527997,1765791367415,152.07,0.000117,2]
[398527998,1765791371507,150.0,7.072e-05,2]
[398527999,1765791371871,150.0,7.715e-05,2]
[398528000,1765791372272,150.0,8.358e-05,2]
[398528001,1765791373177,150.0,9.001e-05,2]
[398528002,1765791373614,180.21,9.644e-05,2]
[398528003,1765791374025,216.25,0.00010287,2]
[398528004,1765791374436,252.29,0.0001093,2]
[398528005,1765791375096,288.33,0.00011572,2]
[398528006,1765791403883,-5000.0,0.00012131,2]
[398528007,1765791411070,0.01,0.00012131,2]
[398528008,1765791411094,4999.99,0.00012131,2]
[398528010,1765791424693,152.08,0.000101,2]
[398528011,1765791424980,152.08,0.000121,2]
[398528012,1765791426619,152.07,0.000101,2]
[398528013,1765791434237,4543.79,0.00012131,2]
[398528014,1765791434261,456.21,0.00012131,2]
[398528015,1765791444283,150.0,7.052e-05,2]
[398528016,1765791444650,150.0,7.693e-05,2]
[398528017,1765791444984,1024.0,0.00014,30]
[398528018,1765791445074,150.0,8.335e-05,2]
[398528019,1765791445509,183.64,8.976e-05,2]
[398528020,1765791445931,229.55,9.617e-05,2]
[398528021,1765791446363,275.46,0.00010258,2]
[398528022,1765791446728,321.37,0.00010899,2]
[398528023,1765791447178,367.28,0.0001154,2]
[398528024,1765791457810,5000.0,0.00012131,2]
[398528025,1765791481288,2716.5,0.00012131,2]
[398528026,1765791481310,2283.5,0.00012131,2]
[398528027,1765791482302,151.48,0.000101,2]
[398528028,1765791483015,151.48,0.000109,2]
[398528029,1765791483118,151.48,0.000117,2]
[398528031,1765791504785,5000.0,0.00012131,2]
[398528032,1765791518920,150.0,7.082e-05,2]
[398528033,1765791519085,150.0,7.726e-05,2]
[398528034,1765791519493,150.0,8.369e-05,2]
[398528035,1765791519896,170.37,9.013e-05,2]
[398528036,1765791520278,212.96,9.657e-05,2]
[398528037,1765791520686,255.55,0.00010301,2]
[398528038,1765791521128,298.14,0.00010945,2]
[398528039,1765791521531,340.73,0.00011588,2]
[398528040,1765791527582,534.32,0.00012131,2]
[398528041,1765791527603,4465.68,0.00012131,2]
[398528044,1765791544780,151.49,0.000101,2]
[398528045,1765791545167,151.49,0.000114,2]
[398528046,1765791546678,151.48,0.000101,2]
[398528047,1765791551997,5000.0,0.00012131,2]
[398528048,1765791575076,79.87,0.00012131,2]
[398528049,1765791575098,4920.13,0.00012131,2]
[398528050,1765791592244,150.0,7.156e-05,2]
[398528051,1765791592642,150.0,7.807e-05,2]
[398528052,1765791593229,150.0,8.457e-05,2]
[398528053,1765791593677,165.12,9.108e-05,2]
[398528054,1765791594034,206.4,9.759e-05,2]
[398528055,1765791594430,247.68,0.00010409,2]
[398528056,1765791594827,288.96,0.0001106,2]
[398528057,1765791595217,330.24,0.0001171,2]
[398528058,1765791597871,3391.48,0.00012131,2]
[398528059,1765791597891,1608.52,0.00012131,2]
[398528060,1765791604360,163.9,0.000101,2]
[398528061,1765791621406,5000.0,0.00012131,2]
[398528062,1765791644676,3227.59,0.00012131,2]
[398528063,1765791644698,1772.41,0.00012131,2]
[398528064,1765791664212,153.82,0.000101,2]
[398528065,1765791664570,153.82,0.000107,2]
[398528066,1765791664881,153.82,0.000112,2]
[398528067,1765791665181,153.82,0.000118,2]
[398528068,1765791665764,150.0,7.15e-05,2]
[398528069,1765791666166,150.0,7.8e-05,2]
[398528070,1765791666610,150.0,8.45e-05,2]
[398528071,1765791667025,150.0,9.1e-05,2]
[398528072,1765791667440,152.54,9.75e-05,2]
[398528073,1765791668011,5000.0,0.00012131,2]
[398528074,1765791668072,183.05,0.000104,2]
[398528075,1765791668323,213.56,0.0001105,2]
[398528076,1765791668723,244.07,0.000117,2]
[398528077,1765791688903,1000.0,0.00012131,2]
[398528078,1765791690010,219.1,0.00012131,2]
[398528079,1765791690033,780.9,0.00012131,2]
[398528080,1765791690724,5000.0,0.00012131,2]
[398528081,1765791691733,1000.0,0.00012131,2]
[398528082,1765791692378,1000.0,0.00012131,2]
[398528083,1765791693461,1000.0,0.00012131,2]
[398528084,1765791694654,1000.0,0.00012131,2]
[398528085,1765791695718,219.11,0.00012131,2]
[398528086,1765791695740,780.89,0.00012131,2]
[398528087,1765791696781,1000.0,0.00012131,2]
[398528088,1765791697865,1000.0,0.00012131,2]
[398528089,1765791698982,1000.0,0.00012131,2]
[398528090,1765791700026,1000.0,0.00012131,2]
[398528091,1765791701364,1000.0,0.00012131,2]
[398528092,1765791702465,1000.0,0.00012131,2]
[398528093,1765791703678,404.80536867,0.00012131,2]
[398528094,1765791714215,5000.0,0.00012131,2]
[398528095,1765791735350,150.0,7.138e-05,2]
[398528096,1765791735792,150.0,7.787e-05,2]
[398528097,1765791736246,150.0,8.436e-05,2]
[398528098,1765791736646,150.0,9.085e-05,2]
[398528099,1765791737133,150.0,9.734e-05,2]
[398528100,1765791737447,165.67,0.00010382,2]
[398528101,1765791737723,4084.34,0.00012131,2]
[398528102,1765791737746,915.66,0.00012131,2]
[398528103,1765791737835,193.28,0.00011031,2]
[398528104,1765791738235,220.89,0.0001168,2]
[398528105,1765791753998,156.4,0.0001,2]
[398528106,1765791754254,156.4,0.000103,2]
[398528107,1765791754343,156.4,0.000106,2]
[398528108,1765791754590,156.4,0.000109,2]
[398528109,1765791754959,156.4,0.000112,2]
[398528110,1765791755147,156.4,0.000115,2]
[398528111,1765791755539,156.4,0.000118,2]
[398528112,1765791761105,5000.0,0.00012131,2]
[398528113,1765791784606,2575.38,0.00012131,2]
[398528114,1765791784629,2424.62,0.00012131,2]
[398528115,1765791786400,157.09,0.0001,2]
[398528116,1765791786676,157.09,0.000105,2]
[398528117,1765791786949,157.09,0.00011,2]
[398528118,1765791787612,157.09,0.000115,2]
[398528119,1765791787682,157.09,0.00012,2]
[398528120,1765791806726,150.0,7.69e-05,2]
[398528121,1765791807136,150.0,8.389e-05,2]
[398528122,1765791807528,150.0,9.088e-05,2]
[398528123,1765791807972,5000.0,0.00012131,2]
[398528124,1765791808433,150.0,9.787e-05,2]
[398528125,1765791809105,150.0,0.00010486,2]
[398528126,1765791809255,150.0,0.00011185,2]
[398528127,1765791809634,150.0,0.00011884,2]
[398528128,1765791874813,150.0,7.145e-05,2]
[398528138,1765792034236,-157.09,0.0001,2]
[398528139,1765792034263,-194.24134569,0.0001065,2]
[398528140,1765792034293,-157.09,0.000113,2]
[398528141,1765792034321,-172.28329334,0.00011612,2]
[398528142,1765792034350,-500.0,0.00011612,2]
[398528143,1765792034378,-457.37619823,0.00011612,2]
[398528144,1765792034408,-500.0,0.00011612,2]
[398528145,1765792034436,-500.0,0.00011612,2]
[398528146,1765792034466,-500.0,0.00011612,2]
[398528147,1765792034496,-514.391,0.00011612,2]
[398528148,1765792034524,-500.0,0.00011612,2]
[398528149,1765792034551,-500.0,0.00011612,2]
[398528150,1765792034580,-195.06632548,0.00011612,2]
[398528151,1765792035791,-5000.0,9.9e-05,2]
[398528152,1765792036132,-304.93367452,0.00011612,2]
[398528153,1765792036161,-500.0,0.00011612,2]
[398528154,1765792036191,-500.0,0.00011612,2]
[398528155,1765792036219,-500.0,0.00011612,2]
[398528156,1765792036252,-500.0,0.00011612,2]
[398528157,1765792036281,-500.0,0.00011612,2]
[398528158,1765792036310,-500.0,0.00011612,2]
[398528159,1765792036339,-500.0,0.00011612,2]
[398528160,1765792036366,-643.46536402,0.00011612,2]
[398528161,1765792036395,-195.29243795,0.00011612,2]
[398528162,1765792036423,-212.62704702,0.00011612,2]
[398528163,1765792036638,-287.37295298,0.00011612,2]
[398528164,1765792036673,-500.0,0.00011612,2]
[398528165,1765792036702,-234.0,0.00011612,2]
[398528166,1765792059541,-5000.0,0.00011496,2]
[398528167,1765792067195,150.0,7.224e-05,2]
[398528168,1765792067518,150.0,7.881e-05,2]
[398528169,1765792067942,150.0,8.538e-05,2]
[398528170,1765792080724,-150.0,9.194e-05,2]
[398528171,1765792080755,-150.0,9.851e-05,2]
[398528172,1765792080785,-150.0,0.00010508,2]
[398528173,1765792080814,-150.0,0.00011165,2]
[398528174,1765792081574,-5000.0,9.102e-05,2]
[398528175,1765792086149,-175.59,0.0001,2]
[398528176,1765792086181,-175.58,0.0001,2]
[398528177,1765792086210,-275.0,0.00011612,2]
[398528178,1765792086238,-300.0,0.00011612,2]
[398528179,1765792086267,-343.0,0.00011612,2]
[398528180,1765792087184,-8135.71501684,0.00011613,2]
[398528181,1765792087316,-10000.01,0.00011613,2]
[398528182,1765792087394,-10000.01,0.00011613,2]
[398528183,1765792092744,-10000.01,0.00011613,2]
[398528184,1765792092848,-10000.01,0.00011613,2]
[398528185,1765792093182,-10000.01,0.00011613,2]
[398528186,1765792093201,-10000.01,0.00011613,2]
[398528187,1765792093271,-10000.01,0.00011613,2]
[398528189,1765792122849,-5000.0,0.00011381,2]
[398528190,1765792122889,-0.01,0.00011495,2]
[398528191,1765792122957,-577.24471533,0.00011495,2]
[398528192,1765792122985,-349.27392934,0.00011495,2]
[398528193,1765792123013,-3746.99713568,0.00011496,2]
[398528194,1765792123110,-652.9784393,0.00011496,2]
[398528195,1765792123157,-674.24575414,0.00011613,2]
[398528196,1765792123198,-8651.51849172,0.00011613,2]
[398528197,1765792128348,5000.0,0.00011613,2]
[398528198,1765792135073,284.38,7.071e-05,2]
[398528199,1765792135510,568.76,7.714e-05,2]
[398528200,1765792135918,853.14,8.357e-05,2]
[398528201,1765792136321,1137.52,9e-05,2]
[398528202,1765792136725,1421.9,9.642e-05,2]
[398528203,1765792137408,734.31,0.00010285,2]
[398528204,1765792137433,971.97,0.00010285,2]
[398528205,1765792137682,1990.66,0.00010928,2]
[398528206,1765792137997,2275.04,0.00011571,2]
[398528207,1765792140016,500.0,0.00011495,2]
[398528208,1765792140051,500.0,0.00011495,2]
[398528209,1765792140122,500.0,0.00011495,2]
[398528210,1765792140234,500.0,0.00011495,2]
[398528211,1765792140339,476.63922632,0.00011495,2]
[398528212,1765792144756,348.03,0.000101,2]
[398528213,1765792145019,348.03,0.000102,2]
[398528214,1765792145330,348.03,0.000103,2]
[398528215,1765792145605,348.03,0.000103,2]
[398528216,1765792145939,348.03,0.000104,2]
[398528217,1765792146206,348.03,0.000105,2]
[398528218,1765792146476,197.52077368,0.000106,2]
[398528219,1765792146500,150.50922632,0.000106,2]
[398528220,1765792147740,348.03,0.000107,2]
[398528221,1765792148009,348.03,0.000107,2]
[398528222,1765792148292,348.03,0.000108,2]
[398528223,1765792148579,348.03,0.000109,2]
[398528224,1765792148925,348.03,0.00011,2]
[398528225,1765792149228,348.03,0.000111,2]
[398528226,1765792149527,348.03,0.000111,2]
[398528227,1765792149788,348.03,0.000112,2]
[398528228,1765792150437,348.03,0.000113,2]
[398528229,1765792150871,348.03,0.000114,2]
[398528230,1765792151013,348.03,0.000115,2]
[398528231,1765792151112,348.03,0.000115,2]
[398528232,1765792151485,348.03,0.000116,2]
[398528233,1765792183589,500.0,0.00011495,2]
[398528234,1765792183616,418.11858719,0.00011495,2]
[398528235,1765792183644,500.0,0.00011495,2]
[398528236,1765792183672,500.0,0.00011495,2]
[398528237,1765792183698,500.0,0.00011495,2]
[398528238,1765792183726,500.0,0.00011495,2]
[398528239,1765792183753,500.0,0.00011495,2]
[398528240,1765792183780,500.0,0.00011495,2]
[398528241,1765792183815,500.0,0.00011495,2]
[398528242,1765792183851,500.0,0.00011495,2]
[398528243,1765792183880,406.99218649,0.00011495,2]
[398528244,1765792183901,93.00781351,0.00011495,2]
[398528245,1765792183952,500.0,0.00011495,2]
[398528246,1765792183978,500.0,0.00011495,2]
[398528247,1765792184008,500.0,0.00011495,2]
[398528248,1765792184043,500.0,0.00011495,2]
[398528249,1765792184083,500.0,0.00011495,2]
[398528250,1765792184181,500.0,0.00011495,2]
[398528251,1765792184238,500.0,0.00011495,2]
[398528252,1765792184509,500.0,0.00011495,2]
[398528253,1765792184538,500.0,0.00011495,2]
[398528254,1765792184576,500.0,0.00011495,2]
[398528255,1765792184604,500.0,0.00011495,2]
[398528256,1765792184633,500.0,0.00011495,2]
[398528257,1765792184669,483.20264756,0.00011495,2]
[398528258,1765792184697,500.0,0.00011495,2]
[398528259,1765792184738,500.0,0.00011495,2]
[398528260,1765792184783,500.0,0.00011495,2]
[398528261,1765792184818,500.0,0.00011495,2]
[398528262,1765792184845,398.97322085,0.00011495,2]
[398528263,1765792212255,500.0,0.00011495,2]
[398528264,1765792212292,500.0,0.00011495,2]
[398528265,1765792212324,24.82631808,0.00011495,2]
[398528266,1765792212347,475.17368192,0.00011495,2]
[398528267,1765792212376,500.0,0.00011495,2]
[398528268,1765792212413,211.08081709,0.00011495,2]
[398528269,1765792212442,500.0,0.00011495,2]
[398528270,1765792212471,500.0,0.00011495,2]
[398528271,1765792212510,500.0,0.00011495,2]
[398528272,1765792212617,290.99924735,0.00011495,2]
[398528273,1765792215248,213.63,0.0001,2]
[398528274,1765792215547,213.63,0.000101,2]
[398528275,1765792216479,213.63,0.000102,2]
[398528276,1765792216516,500.0,0.00011495,2]
[398528277,1765792216824,213.63,0.000102,2]
[398528278,1765792216885,498.89042567,0.00011495,2]
[398528279,1765792217077,213.63,0.000103,2]
[398528280,1765792217954,213.63,0.000104,2]
[398528281,1765792218146,213.63,0.000105,2]
[398528282,1765792218271,213.63,0.000106,2]
[398528283,1765792218594,213.63,0.000107,2]
[398528284,1765792218947,213.63,0.000107,2]
[398528285,1765792219303,213.63,0.000108,2]
[398528286,1765792219601,213.63,0.000109,2]
[398528287,1765792219907,213.63,0.00011,2]
[398528288,1765792220204,213.63,0.000111,2]
[398528289,1765792220480,213.63,0.000111,2]
[398528290,1765792220867,213.63,0.000112,2]
[398528291,1765792221199,213.63,0.000113,2]
[398528292,1765792221500,213.63,0.000114,2]
[398528293,1765792221834,213.63,0.000115,2]
[398528294,1765792222128,213.63,0.000116,2]
[398528295,1765792222866,213.63,0.000116,2]
[398528296,1765792229314,154.08,7.286e-05,2]
[398528297,1765792229714,308.17,7.949e-05,2]
[398528298,1765792230349,462.25,8.611e-05,2]
[398528299,1765792231086,616.33,9.274e-05,2]
[398528300,1765792231177,500.0,0.00011495,2]
[398528301,1765792231235,470.09142711,0.00011495,2]
[398528302,1765792231501,770.41,9.936e-05,2]
[398528325,1765792232036,924.5,0.00010598,2]
[398528333,1765792232103,-213.63,0.000117,2]
[398528335,1765792232113,-190.35651878,0.0001175,2]
[398528337,1765792232123,-585.0,0.0001175,2]
[398528339,1765792232132,-109.27267945,0.000118,2]
[398528344,1765792232163,-104.35732055,0.000118,2]
[398528346,1765792232173,-336.64267945,0.0001189,2]
[398528348,1765792232193,-251.7934699,0.0001189,2]
[398528365,1765792232350,1078.58,0.00011261,2]
[398528395,1765792238157,-898.37213801,0.0001189,2]
[398528397,1765792238168,-1488.55634478,0.0001189,2]
[398528403,1765792238255,-1653.33869894,0.0001189,2]
[398528405,1765792238279,-371.29666892,0.0001189,2]
[398528407,1765792238300,-500.0,0.00011899,2]
[398528409,1765792238320,-28.70333108,0.00011899,2]
[398528882,1765792243135,-8.56318191,0.00011899,2]
[398528927,1765792243547,-462.73348701,0.00011899,2]
[398528928,1765792243556,-295.72599594,0.00011899,2]
[398528930,1765792243566,-213.63,0.000119,2]
[398528932,1765792243575,-898.52440533,0.00011923,2]
[398528935,1765792243586,-334.13559467,0.00011923,2]
[398528937,1765792243595,-213.63,0.00012,2]
[398528938,1765792243605,-213.63,0.00012,2]
[398528940,1765792243614,-300.0,0.00012009,2]
[398528942,1765792243623,-251.60440533,0.00012009,2]
[398529255,1765792247119,-48.39559467,0.00012009,2]
[398529256,1765792247128,-637.47654642,0.0001201,2]
[398529427,1765792271757,173.48,0.000101,2]
[398529428,1765792272056,173.48,0.000102,2]
[398529429,1765792272431,173.48,0.000103,2]
[398529430,1765792272720,173.48,0.000103,2]
[398529431,1765792272992,173.48,0.000104,2]
[398529432,1765792274015,173.48,0.000105,2]
[398529433,1765792274703,173.48,0.000106,2]
[398529434,1765792274850,173.48,0.000107,2]
[398529435,1765792274986,173.48,0.000107,2]
[398529436,1765792275303,173.48,0.000108,2]
[398529437,1765792275575,173.48,0.000109,2]
[398529438,1765792275853,173.48,0.00011,2]
[398529439,1765792276343,173.48,0.000111,2]
[398529440,1765792276568,173.48,0.000111,2]
[398529441,1765792276908,173.48,0.000112,2]
[398529442,1765792277201,173.48,0.000113,2]
[398529443,1765792277538,173.48,0.000114,2]
[398529444,1765792277904,173.48,0.000115,2]
[398529445,1765792278167,173.48,0.000115,2]
[398529446,1765792278458,173.48,0.000116,2]
[398529447,1765792306837,209.67,7.695e-05,2]
[398529448,1765792307246,419.33,8.394e-05,2]
[398529449,1765792319762,616.99857289,9.094e-05,2]
[398529450,1765792319785,12.00142711,9.094e-05,2]
[398529451,1765792320197,838.66,9.794e-05,2]
[398529452,1765792321125,1048.33,0.00010493,2]
[398529453,1765792321510,1257.99,0.00011193,2]
[398529454,1765792335278,150.02,0.000101,2]
[398529455,1765792335631,150.02,0.000102,2]
[398529456,1765792335908,150.02,0.000103,2]
[398529457,1765792337450,150.02,0.000104,2]
[398529458,1765792337563,150.02,0.000104,2]
[398529459,1765792337646,150.02,0.000105,2]
[398529460,1765792337831,150.02,0.000106,2]
[398529461,1765792338074,4105.66377818,0.00011613,2]
[398529462,1765792338163,150.02,0.000107,2]
[398529463,1765792338561,150.02,0.000108,2]